Cogmind - Beta 10.2 @@@ ROGUE MODE // 2021.03.07 @ 20:25:07 Player: KTG-V2 Result: Establishing Free Derelict Territories! Performance ------------- Evolutions (9) 4500 Regions Visited (34) 6800 Robots Destroyed (269) 1345 Value Destroyed (7865) 7865 Prototype IDs (58) 1160 Alien Tech Used (4) 800 Bonus (31265) 31265 TOTAL SCORE: 53735 Bonus ------- High Alert Combat Kills 111 Follower Combat Kills 14 Met Data Miner 300 Met Imprinter 300 Met Zhirov 300 Met Warlord at Base 500 MAIN.C Attacked Warlord 500 Met Warlord at Research 2000 Invited to Help at Command 2000 Destroyed MAIN.C Guards 500 Met MAIN.C 5000 Destroyed MAIN.C Shell 5000 Destroyed MAIN.C 10000 Met Warlord at Command 2000 Win 3000 Friendly Fire -260 Cogmind --------- Core Integrity 1312/1600 Matter 300/300 Energy 525/1170 System Corruption 8% Temperature Cool (0) Movement Flying (40) Location Free Derelict Territories Parts ------- > --- POWER (2) -------- Micro Fission Core > --- PROPULSION (6) --- Impulse Thruster Array > --- UTILITY (16) ----- Medium Storage Unit Experimental Energy Well Advanced Terrain Scan Processor Advanced Melee Analysis Suite Advanced Armor Integrity Analyzer Femtoactuators Advanced Reaction Control System Advanced Phase Shifter Improved Utility Shielding > --- WEAPON (2) ------- Nanosword Nanosword > --- INVENTORY (8) ---- Experimental Terrain Scanner Advanced Force Field Transdimensional Reconstructor High-powered Transdimensional Reconstructor Subatomic Replicator Nanosword Peak State ------------ > --- POWER ------------ Micro Fission Core Micro Fission Core > --- PROPULSION ------- Impulse Thruster Array Impulse Thruster Array Impulse Thruster Array > --- UTILITY ---------- Medium Storage Unit Large Storage Unit Experimental Energy Well Advanced Terrain Scan Processor Advanced Melee Analysis Suite Advanced Armor Integrity Analyzer Femtoactuators Advanced Reaction Control System Advanced Phase Shifter Experimental Utility Shielding Centrium Light Armor Plating Advanced Powered Armor Advanced Force Field Advanced Hacking Suite Advanced Hacking Suite Improved System Shield > --- WEAPON ----------- Nanosword Nanosword > --- INVENTORY -------- Micro Fission Core Impulse Thruster Array Experimental Energy Well Experimental Terrain Scanner Advanced ECM Suite Experimental Utility Shielding Antimissile System Dimensional Node Initializer Transdimensional Reconstructor High-powered Transdimensional Reconstructor Subatomic Replicator Nanosword [Rating: 193] Favorites ----------- Power Micro Fission Core Engine Cooled Ion Engine Power Core Micro Fission Core Propulsion Light Treads Treads Light Treads Leg Aluminum Leg Flight Unit Impulse Thruster Array Utility Advanced Hacking Suite Device Experimental Sensor Array Storage Medium Storage Unit Processor Experimental Signal Interpreter Hackware Advanced Hacking Suite Protection Advanced Powered Armor Artifact Matter Drive Weapon Lance Energy Gun EM Pulse Gun Energy Cannon Advanced Beam Cannon Ballistic Gun Autogun Launcher Mini Smartbomb Launcher Impact Weapon Heavy Mace Slashing Weapon Nanosword Piercing Weapon Lance Build | -11 -10 -10 -9 -9 -9 -8 -8 -7 -7 -7 -7 -6 -6 -6 -6 -6 -5 -5 -5 -5 -5 -4 -4 -4 -4 -4 -3 -3 -3 -2 -2 -2 -1 -1 ------- Run | Scr Mat Min Mat Min Exi Min Mat Fac Low Low Zio Pro Fac Low Low Dat Pro Fac Upp Upp War Pro Fac Upp Upp Zhi Pro Res Qua Res Tes Sec Acc Com Slots Evolved 18 | . . . 2 . . . 2 2 . . . . 2 . . . . 2 . . . . 2 . . . . 2 . 2 . . 2 . Power 1 | . . . . . . . . . . . . . . . . . . 1 . . . . . . . . . . . . . . . . Propulsion 3 | . . . . . . . 1 . . . . . . . . . . 1 . . . . . . . . . 1 . . . . . . Utility 14 | . . . 2 . . . 1 2 . . . . 2 . . . . . . . . . 2 . . . . 1 . 2 . . 2 . Weapon . | . . . . . . . . . . . . . . . . . . . . . . . . . . . . . . . . . . . Parts Attached 336 | 7 7 2 37 4 2 3 29 30 2 2 . . 21 5 7 . 2 17 . 2 5 1 21 3 3 11 6 5 20 22 12 4 20 24 Power 19 | 1 . 1 4 . . . . 2 . . . . 2 1 . . . 2 . . 1 . 1 . . . 1 . 1 . . . . 2 Engine 7 | 1 . 1 4 . . . . . . . . . . . . . . 1 . . . . . . . . . . . . . . . . Core 12 | . . . . . . . . 2 . . . . 2 1 . . . 1 . . 1 . 1 . . . 1 . 1 . . . . 2 Reactor . | . . . . . . . . . . . . . . . . . . . . . . . . . . . . . . . . . . . Propulsion 64 | 2 . 1 12 . . 2 16 6 . . . . 3 . . . . 3 . . 1 . 2 . . 6 . 2 2 1 1 . 1 3 Treads 30 | 2 . 1 11 . . 2 14 . . . . . . . . . . . . . . . . . . . . . . . . . . . Leg 2 | . . . . . . . 2 . . . . . . . . . . . . . . . . . . . . . . . . . . . Wheel . | . . . . . . . . . . . . . . . . . . . . . . . . . . . . . . . . . . . Hover . | . . . . . . . . . . . . . . . . . . . . . . . . . . . . . . . . . . . Flight 32 | . . . 1 . . . . 6 . . . . 3 . . . . 3 . . 1 . 2 . . 6 . 2 2 1 1 . 1 3 Utility 151 | 1 4 . 6 . 2 . 4 11 1 . . . 9 3 . . 1 5 . 2 3 1 15 2 . 5 2 3 13 15 9 1 14 19 Device 76 | . . . 2 . . . 2 3 . . . . 3 3 . . . 2 . 2 2 . 9 2 . 3 2 2 8 13 5 1 9 3 Storage 20 | 1 4 . 1 . 2 . . 1 . . . . . . . . . 1 . . . . 1 . . 1 . 1 2 . . . 2 3 Processor 9 | . . . . . . . . 2 . . . . 1 . . . . . . . 1 . . . . . . . . 2 . . 2 1 Hackware 21 | . . . . . . . . 5 1 . . . 5 . . . . 2 . . . 1 5 . . . . . . . 2 . . . Protection 22 | . . . 3 . . . 2 . . . . . . . . . 1 . . . . . . . . 1 . . . . 2 . 1 12 Artifact 3 | . . . . . . . . . . . . . . . . . . . . . . . . . . . . . 3 . . . . . Weapon 102 | 3 3 . 15 4 . 1 9 11 1 2 . . 7 1 7 . 1 7 . . . . 3 1 3 . 3 . 4 6 2 3 5 . Energy Gun 6 | 1 . . 3 . . . 1 1 . . . . . . . . . . . . . . . . . . . . . . . . . . Energy Cannon 42 | . . . 10 2 . . 8 . . . . . 2 . 3 . . 3 . . . . 2 . 2 . 2 . 1 4 . 1 2 . Ballistic Gun 7 | 2 3 . 1 . . 1 . . . . . . . . . . . . . . . . . . . . . . . . . . . . Ballistic Cannon . | . . . . . . . . . . . . . . . . . . . . . . . . . . . . . . . . . . . Launcher 14 | . . . 1 2 . . . 2 . 1 . . 1 . . . . . . . . . 1 1 1 . 1 . 1 1 . . 1 . Special Weapon . | . . . . . . . . . . . . . . . . . . . . . . . . . . . . . . . . . . . Impact Weapon 5 | . . . . . . . . 2 1 1 . . 1 . . . . . . . . . . . . . . . . . . . . . Slashing Weapon 23 | . . . . . . . . 6 . . . . 3 1 4 . 1 2 . . . . . . . . . . . . 2 2 2 . Piercing Weapon 5 | . . . . . . . . . . . . . . . . . . 2 . . . . . . . . . . 2 1 . . . . Special Melee Weapon . | . . . . . . . . . . . . . . . . . . . . . . . . . . . . . . . . . . . Unidentified Prototypes 17 | . . . 5 . . . . . . . . . . . . . . . . 1 4 . . . . 5 . . 2 . . . . . Parts Lost 39 | . . 1 4 1 . 3 5 4 . . . . 1 3 . . . . . 1 . . . . . . 1 . . . 2 1 1 11 Power 5 | . . . . . . . . 1 . . . . . 1 . . . . . . . . . . . . 1 . . . . . . 2 Propulsion 10 | . . 1 1 . . 2 . 1 . . . . . 1 . . . . . . . . . . . . . . . . . . 1 3 Utility 15 | . . . 1 . . . 1 1 . . . . 1 1 . . . . . 1 . . . . . . . . . . 2 1 . 6 Weapon 9 | . . . 2 1 . 1 4 1 . . . . . . . . . . . . . . . . . . . . . . . . . . Highest Loss Streak 7 | . . 1 2 1 . 2 2 3 . . . . 1 2 . . . . . 1 . . . . . . 1 . . . 2 1 1 7 Average Slot Usage (%) 91 | . 98 100 99 99 100 99 98 89 92 92 92 92 93 78 73 73 73 82 88 80 79 87 89 90 90 91 94 89 85 82 83 85 85 82 Engine 3 | . 14 14 11 11 11 11 9 . . . . . . . . . . 2 5 5 . . . . . . . . . . . . . . Core 5 | . . . . . . . . 6 7 7 7 7 6 6 6 6 6 4 5 5 10 11 9 10 10 10 9 9 8 8 8 8 7 6 Treads 5 | . 28 28 21 22 22 22 22 . . . . . . . . . . . . . . . . . . . . . . . . . . . Flight 12 | . . . . . . . . 22 23 23 23 23 20 13 13 13 13 11 11 11 13 16 14 15 15 17 20 18 14 12 11 12 11 10 Device 7 | . . . 7 11 11 11 8 6 7 7 7 7 6 9 6 6 6 5 5 4 5 5 11 5 5 3 4 8 8 9 9 6 11 14 Storage 15 | . 27 28 33 33 33 33 27 7 7 7 7 7 6 6 6 6 6 10 11 11 11 11 12 15 15 15 15 13 13 12 12 12 11 10 Processor 4 | . . . . . . . . 6 7 7 7 7 6 6 6 6 6 5 5 5 5 5 5 5 5 5 5 4 4 6 5 4 4 9 Hackware 21 | . . . . . . . . 28 30 30 30 30 40 33 33 33 33 29 29 24 22 26 25 30 30 30 30 27 23 20 19 25 22 9 Protection 1 | . . . 3 . . . 8 . . . . . . . . . . . . . . . . . . . . . . . 4 8 7 9 Energy Cannon 4 | . . . 15 21 22 13 15 . . . . . . . . . . 3 5 5 5 5 4 3 3 5 1 4 3 3 1 . . . Ballistic Gun 2 | . 28 28 4 . . 8 1 . . . . . . . . . . . . . . . . . . . . . . . . . . . Piercing Weapon 2 | . . . . . . . . . . . . . . . . . . 3 5 5 5 5 5 5 5 5 5 4 4 4 1 . . . Naked Turns . | . . . . . . . . . . . . . . . . . . . . . . . . . . . . . . . . . . . Heaviest Build 105 | 12 43 43 66 66 98 98 105 102 18 18 18 18 20 20 18 15 15 39 38 38 38 38 54 51 51 51 51 58 75 79 81 74 80 80 Greatest Support 84 | 40 40 40 40 40 40 40 84 78 20 20 20 20 24 24 16 16 16 40 40 40 51 51 54 54 54 54 52 70 81 81 81 81 81 81 Greatest Overweight (x) 20 | . 1 1 20 1 2 2 9 1 . . . . . 1 1 . . . . . . . . . . 1 . . . . . . . . Average Overweight (x) . | . . 1 1 1 1 2 1 . . . . . . . . . . . . . . . . . . . . . . . . . . . Largest Inventory Capacity 30 | 6 16 16 22 22 26 26 26 30 8 8 8 8 8 8 8 8 8 12 12 12 12 12 16 16 16 16 16 18 20 20 20 20 20 14 Average Capacity 15 | 5 15 16 22 22 24 26 26 8 8 8 8 8 8 8 8 8 8 11 12 12 12 12 13 16 16 16 16 16 19 20 20 20 19 13 Most Carried 26 | 6 16 16 22 22 23 21 26 25 8 8 8 8 8 7 7 7 8 12 12 12 12 12 16 16 16 16 16 18 20 20 20 20 20 14 Average Carried 14 | 2 11 15 20 21 21 20 24 7 8 8 8 8 7 5 6 7 7 11 12 12 11 11 12 16 15 15 14 16 18 19 19 20 18 12 Final Capacity 26 | 6 16 16 22 22 26 26 26 8 8 8 8 8 8 8 8 8 8 12 12 12 12 12 16 16 16 16 16 18 20 20 20 20 16 8 Final Carried 25 | 6 16 16 22 21 21 20 25 8 8 8 8 8 7 6 7 7 8 12 12 12 12 12 16 16 16 16 13 18 20 20 20 20 16 6 Class Distribution -------------------- 35% | Wizard-Sprinter 18% | Hauler-Mutant 11% | Hacker-Sprinter 10% | Hacker-Mutant 10% | Wizard-Mutant 7% | Mutant 5% | Wizard-Scout Dominant Class ---------------- Mutant | -10/Materials Mutant | -10/Mines Hauler-Mutant | -9/Materials Hauler-Mutant | -9/Mines Hauler-Mutant | -9/Exiles Hauler-Mutant | -8/Mines Hauler-Mutant | -8/Materials Hacker-Sprinter | -7/Factory Hacker-Sprinter | -7/Lower Caves Hacker-Sprinter | -7/Lower Caves Hacker-Sprinter | -7/Zion Hacker-Sprinter | -6/Proximity Caves Wizard-Sprinter | -6/Factory Hacker-Mutant | -6/Lower Caves Hacker-Mutant | -6/Lower Caves Hacker-Mutant | -6/Data Miner Hacker-Mutant | -5/Proximity Caves Wizard-Mutant | -5/Factory Wizard-Mutant | -5/Upper Caves Hacker-Mutant | -5/Upper Caves Hacker-Mutant | -5/Warlord Wizard-Sprinter | -4/Proximity Caves Wizard-Sprinter | -4/Factory Wizard-Sprinter | -4/Upper Caves Wizard-Sprinter | -4/Upper Caves Wizard-Sprinter | -4/Zhirov Wizard-Sprinter | -3/Proximity Caves Wizard-Sprinter | -3/Research Wizard-Mutant | -3/Quarantine Wizard-Scout | -2/Research Wizard-Scout | -2/Testing Wizard-Scout | -2/Section 7 Wizard-Scout | -1/Access Hacker-Mutant | -1/Command Resources | -11 -10 -10 -9 -9 -9 -8 -8 -7 -7 -7 -7 -6 -6 -6 -6 -6 -5 -5 -5 -5 -5 -4 -4 -4 -4 -4 -3 -3 -3 -2 -2 -2 -1 -1 ----------- Run | Scr Mat Min Mat Min Exi Min Mat Fac Low Low Zio Pro Fac Low Low Dat Pro Fac Upp Upp War Pro Fac Upp Upp Zhi Pro Res Qua Res Tes Sec Acc Com Matter Collected 5503 | 278 399 232 841 110 20 62 403 310 30 40 . . 291 78 70 . 20 170 . 30 . 60 250 190 70 80 308 58 186 308 132 . 147 330 Remotely . | . . . . . . . . . . . . . . . . . . . . . . . . . . . . . . . . . . . Salvage Created 11255 | 88 468 188 1843 422 . 411 2254 305 . 14 . . 319 95 109 . . 250 . . . . 590 127 35 215 131 272 374 382 32 . 136 2195 Parts 568 | 3 34 10 111 29 . 20 108 6 . 2 . . 18 . 2 . . 18 . . . . 22 11 5 2 4 15 17 31 . . 7 93 Haulers Intercepted 17 | . 1 . 6 . . . 5 . . . . . . . . . . . . . . . . . . . . 2 2 1 . . . . Recyclers Shooed 3 | . . . 2 1 . . . . . . . . . . . . . . . . . . . . . . . . . . . . . . Parts Field Recycled . | . . . . . . . . . . . . . . . . . . . . . . . . . . . . . . . . . . . Retrieved Matter . | . . . . . . . . . . . . . . . . . . . . . . . . . . . . . . . . . . . Parts Self-Destructed 34 | . . . . . . . . . . 2 . . . 2 1 . . . . 8 4 . . 5 3 2 7 . . . . . . . Prevented 11 | . . . . . . . . . . . . . . . . . . . . . 6 . . . . . 5 . . . . . . . Kills | -11 -10 -10 -9 -9 -9 -8 -8 -7 -7 -7 -7 -6 -6 -6 -6 -6 -5 -5 -5 -5 -5 -4 -4 -4 -4 -4 -3 -3 -3 -2 -2 -2 -1 -1 ------- Run | Scr Mat Min Mat Min Exi Min Mat Fac Low Low Zio Pro Fac Low Low Dat Pro Fac Upp Upp War Pro Fac Upp Upp Zhi Pro Res Qua Res Tes Sec Acc Com Combat Hostiles Destroyed 156 | . 9 5 34 11 . 6 34 3 . 1 . . 4 . . . . . . . . . 4 15 5 . 2 . 3 5 . . . 15 Melee 15 | . . . . . . . . . . . . . . . . . . . . . . . . . . . . . . . . . . 15 Guns 38 | . 9 5 13 . . 1 10 . . . . . . . . . . . . . . . . . . . . . . . . . . . Cannons 48 | . . . 14 6 . 5 23 . . . . . . . . . . . . . . . . . . . . . . . . . . . AOE 54 | . . . 7 5 . . . 3 . 1 . . 4 . . . . . . . . . 4 15 5 . 2 . 3 5 . . . . Classes Destroyed 16 | 1 6 1 2 1 . . 2 . . . . . . . 1 . . . . . . . . . . . 1 . . . . . . 1 Worker 22 | . 1 2 2 1 . . 1 2 . . . . 1 . . . . 6 . . . . 2 . . . . . . 2 . . 1 1 Builder 3 | . . . 1 . . . . . . . . . . . . . . 1 . . . . . . . . . . . 1 . . . . Tunneler 8 | . . . . 2 . 2 . . . . . . . . . . . 1 . . . . . . . . . 1 . 2 . . . . Hauler 17 | . 1 . 6 . . . 5 . . . . . . . . . . . . . . . . . . . . 2 2 1 . . . . Recycler 16 | 1 1 . 2 3 . 1 1 2 . . . . 1 . . . . . . . . . 3 . . . . . . . . . . 1 Minesweeper 3 | . . . . . . . . . . . . . . . 1 . . . . . . . . . . . 2 . . . . . . . Operator 11 | . 1 . 2 . . . 5 2 . . . . 1 . . . . . . . . . . . . . . . . . . . . . Watcher 33 | . 2 . 5 . . . 4 1 . . . . 3 . . . . 4 . . . . 3 . . . . 1 2 3 1 . 3 1 Swarmer 68 | . 3 3 10 8 . . . 3 . 1 . . 4 . . . . . . . . . 4 15 5 . . . 3 5 . . . 4 Grunt 54 | . 6 . 14 3 . 6 24 . . . . . . . . . . . . . . . . . . . 1 . . . . . . . Brawler 1 | . . . . . . . 1 . . . . . . . . . . . . . . . . . . . . . . . . . . . Duelist 1 | . . . 1 . . . . . . . . . . . . . . . . . . . . . . . . . . . . . . . Sentry 18 | . . 2 9 . . . 7 . . . . . . . . . . . . . . . . . . . . . . . . . . . Hunter 6 | . . . . . . . 2 . . . . . . . . . . . . . . . . . . . . . . . . . . 4 Programmer 5 | . . . . . . . . . . . . . . . . . . . . . . . . . . . 1 . . . . . . 4 Behemoth 1 | . . . . . . . . . . . . . . . . . . . . . . . . . . . . . . . . . . 1 Combat Programmer 1 | . . . . . . . . . . . . . . . . . . . . . . . . . . . . . . . . . . 1 Decomposer 1 | . . . . . . . . . . . . . . . 1 . . . . . . . . . . . . . . . . . . . Packrat 1 | . . . . . . . . . . . . . . 1 . . . . . . . . . . . . . . . . . . . . Best Kill Streak 11 | 1 6 3 11 8 . 3 6 3 . 1 . . 5 . 1 . . 2 . . . . 4 6 5 . 1 2 3 6 1 . 1 7 Combat Bots Only 8 | . 3 3 8 4 . 3 4 3 . 1 . . 4 . . . . . . . . . 4 6 5 . 1 . 3 5 . . . 7 Max Kills in Single Turn 5 | 1 2 1 5 2 . 1 2 2 . 1 . . 2 1 1 . . 2 . . . . 4 4 3 . 1 1 2 4 1 . 1 1 Gunslinging 1 | . 1 . 1 . . . . . . . . . . . . . . . . . . . . . . . . . . . . . . . Exploded 5 | . . . 5 2 . . . 2 . 1 . . 2 . . . . . . . . . 4 4 3 . 1 . 2 4 . . . . Melee 1 | . . . . . . . . . . . . . . . . . . . . . . . . . . . . . . . . . . 1 Uniques/NPCs Destroyed 1 | . . . . . . . . . . . . . . . . . . . . . . . . . . . . . . . . . . 1 MAIN.C (-1/Command) Combat | -11 -10 -10 -9 -9 -9 -8 -8 -7 -7 -7 -7 -6 -6 -6 -6 -6 -5 -5 -5 -5 -5 -4 -4 -4 -4 -4 -3 -3 -3 -2 -2 -2 -1 -1 -------- Run | Scr Mat Min Mat Min Exi Min Mat Fac Low Low Zio Pro Fac Low Low Dat Pro Fac Upp Upp War Pro Fac Upp Upp Zhi Pro Res Qua Res Tes Sec Acc Com Damage Taken 10521 | . 375 414 1180 165 . 445 1796 347 81 . . . 440 274 . . . 219 37 26 . . 349 15 . . 47 . . 628 331 182 441 2729 Core 1553 | . 63 80 128 32 . 27 238 69 47 . . . 172 92 . . . 169 . . . . 68 . . . . . . 60 . 20 19 269 Absorbed by Shields 637 | . . . . . . . . . . . . . 35 . . . . . . . . . . . . . . . . . . . . 602 Core Remaining (%) 77 | 100 . 42 . . . 53 56 . . . . 83 . . . . 68 . . . . 83 . . . . 94 . 100 . . 94 . 82 Volleys Fired 673 | 2 46 18 101 23 . 26 137 5 . 2 . . 11 . 8 . . 53 15 6 . 7 51 32 21 . 19 30 29 25 . 2 4 . Largest 2 | 2 2 2 2 2 . 2 2 1 . 1 . . 1 . 1 . . 1 1 1 . 1 1 1 1 . 1 1 1 1 . 1 1 . Hottest 136 | 40 46 46 136 136 . 136 136 40 . 30 . . 90 . 90 . . 90 90 90 . 90 110 110 110 . 110 105 105 113 . 113 113 . Shots Fired 1011 | 4 92 36 199 40 . 48 272 5 . 2 . . 11 . 8 . . 53 15 6 . 7 51 32 21 . 19 30 29 25 . 2 4 . Gun 308 | 4 92 36 84 . . 14 77 1 . . . . . . . . . . . . . . . . . . . . . . . . . . Cannon 657 | . . . 112 34 . 34 195 . . . . . 8 . 8 . . 53 15 6 . 7 49 24 19 . 8 30 26 23 . 2 4 . Launcher 46 | . . . 3 6 . . . 4 . 2 . . 3 . . . . . . . . . 2 8 2 . 11 . 3 2 . . . . Special . | . . . . . . . . . . . . . . . . . . . . . . . . . . . . . . . . . . . Kinetic 252 | 4 92 36 64 . . 14 42 . . . . . . . . . . . . . . . . . . . . . . . . . . . Thermal 693 | . . . 112 34 . 34 230 1 . . . . 8 . 8 . . 53 15 6 . 7 49 24 19 . 8 30 26 23 . 2 4 . Explosive 46 | . . . 3 6 . . . 4 . 2 . . 3 . . . . . . . . . 2 8 2 . 11 . 3 2 . . . . Electromagnetic 20 | . . . 20 . . . . . . . . . . . . . . . . . . . . . . . . . . . . . . . Robot Hit Streak 33 | 3 13 11 13 11 . 17 33 1 . . . . . . 4 . . 6 . 7 . . . . . . . . . 2 . . . . Robot Miss Streak 6 | . 6 1 3 2 . 1 4 2 . . . . 3 . . . . 1 . . . . 1 . . . . . . . . . . . Penetration Max . | . . . . . . . . . . . . . . . . . . . . . . . . . . . . . . . . . . . Secondary Targets 4 | . 2 . 1 . . . 1 . . . . . . . . . . . . . . . . . . . . . . . . . . . Max Gunslinging Chain 1 | . 1 . 1 . . . 1 . . . . . . . . . . . . . . . . . . . . . . . . . . . Shots Hit Robots 728 | 3 60 27 137 23 . 34 191 12 . . . . 9 4 8 . . 17 . 1 . . 14 . . 3 5 6 7 13 2 . 7 145 Core Hits 391 | 2 26 9 66 20 . 17 82 6 . 1 . . 13 1 3 . . 12 . . . . 12 16 5 3 6 5 9 17 1 . 3 56 Critical Hits 37 | . . 1 10 3 . 1 12 . . . . . . . . . . 2 . . . . . . . . . . . 1 1 . . 6 Critical Kills 14 | . . 1 2 2 . . 6 . . . . . . . . . . 2 . . . . . . . . . . . 1 . . . . Critical Parts Destroyed 19 | . . . 8 1 . 1 5 . . . . . . . . . . . . . . . . . . . . . . . 1 . . 3 Melee Attacks 598 | . . . . . . . . 51 6 33 . 5 76 4 4 . 1 46 . . . 1 43 1 4 3 5 31 33 25 19 2 33 172 Impact 122 | . . . . . . . . 30 6 33 . 5 48 . . . . . . . . . . . . . . . . . . . . . Slashing 284 | . . . . . . . . 21 . . . . 28 4 4 . 1 10 . . . . . . . . . . . . 9 2 33 172 Piercing 192 | . . . . . . . . . . . . . . . . . . 36 . . . 1 43 1 4 3 5 31 33 25 10 . . . Sneak Attacks 39 | . . . . . . . . 6 . . . . 3 1 2 . . 3 . . . . 8 . . . 2 3 2 6 . . 1 2 Combat Hostiles . | . . . . . . . . . . . . . . . . . . . . . . . . . . . . . . . . . . . Follow-up Attacks 22 | . . . . . . . . . . . . . . . . . . . . . . . . . . . . . . . . . . 22 Damage Inflicted 33732 | 28 745 421 2807 923 . 633 3585 961 . 58 . . 942 198 542 . . 1240 . 32 . . 1569 1615 605 302 799 534 1045 1534 106 . 574 11934 Guns 3030 | 28 745 421 877 . . 122 824 13 . . . . . . . . . . . . . . . . . . . . . . . . . . Cannons 5880 | . . . 1651 551 . 511 2761 . . . . . . . 110 . . 264 . 32 . . . . . . . . . . . . . . Explosions 5705 | . . . 279 372 . . . 244 . 58 . . 318 . . . . 310 . . . . 296 1615 605 . 453 . 607 548 . . . . Melee 19117 | . . . . . . . . 704 . . . . 624 198 432 . . 666 . . . . 1273 . . 302 346 534 438 986 106 . 574 11934 Ramming . | . . . . . . . . . . . . . . . . . . . . . . . . . . . . . . . . . . . Kinetic 2493 | 28 745 421 717 . . 122 460 . . . . . . . . . . . . . . . . . . . . . . . . . . . Thermal 6567 | . . . 1651 551 . 511 3125 13 . . . . . . 110 . . 574 . 32 . . . . . . . . . . . . . . Explosive 5395 | . . . 279 372 . . . 244 . 58 . . 318 . . . . . . . . . 296 1615 605 . 453 . 607 548 . . . . Electromagnetic 160 | . . . 160 . . . . . . . . . . . . . . . . . . . . . . . . . . . . . . . Impact 639 | . . . . . . . . 490 . . . . 149 . . . . . . . . . . . . . . . . . . . . . Slashing 14119 | . . . . . . . . 214 . . . . 475 198 432 . . 292 . . . . . . . . . . . . . . 574 11934 Piercing 4359 | . . . . . . . . . . . . . . . . . . 374 . . . . 1273 . . 302 346 534 438 986 106 . . . Highest Corruption 11 | . . . . . . . 2 . . . . . 3 3 . . . . . . . . 1 . . . 1 . . 2 10 11 . 8 Average Corruption 2 | . . . . . . . 2 . . . . . 3 2 . . . . . . . . 1 . . . 1 . . 1 7 10 . 4 Corruption Purged 4 | . . . . . . . . . . . . . . 3 . . . . . . . . 1 . . . . . . . . . . . Effects 117 | . . . . . . . 13 . . . . . 32 14 . . . . . . . . . . . . 2 . . 10 23 6 . 17 Message Errors 29 | . . . . . . . 1 . . . . . 11 6 . . . . . . . . . . . . 1 . . 4 4 1 . 1 Matter Fused 17 | . . . . . . . . . . . . . 6 5 . . . . . . . . . . . . . . . . 2 1 . 3 Heat Flow Errors 15 | . . . . . . . 2 . . . . . 4 3 . . . . . . . . . . . . . . . 2 3 . . 1 Energy Discharges 13 | . . . . . . . 2 . . . . . 4 . . . . . . . . . . . . . . . . 1 5 . . 1 Parts Rejected 2 | . . . . . . . . . . . . . . . . . . . . . . . . . . . . . . . . 1 . 1 Data Loss (minor) 18 | . . . . . . . 2 . . . . . 6 . . . . . . . . . . . . . 1 . . 3 1 1 . 4 Data Loss (major) 1 | . . . . . . . . . . . . . . . . . . . . . . . . . . . . . . . . 1 . . Misdirections 9 | . . . . . . . . . . . . . . . . . . . . . . . . . . . . . . . 8 1 . . Targeting Errors 12 | . . . . . . . 5 . . . . . 1 . . . . . . . . . . . . . . . . . . . . 6 Weapon Failures 1 | . . . . . . . 1 . . . . . . . . . . . . . . . . . . . . . . . . . . . Overload Shots . | . . . . . . . . . . . . . . . . . . . . . . . . . . . . . . . . . . . Overflow Damage 2747 | . . . 13 23 . . . 423 . . . . 269 93 178 . . 237 . 22 . . 177 89 30 . 203 . 38 186 . . 214 552 Projectiles 78 | . . . 13 8 . . . . . . . . . . . . . 35 . 22 . . . . . . . . . . . . . . Explosions 374 | . . . . 15 . . . 42 . . . . . . . . . 103 . . . . 23 89 30 . 17 . 38 17 . . . . Melee 2295 | . . . . . . . . 381 . . . . 269 93 178 . . 99 . . . . 154 . . . 186 . . 169 . . 214 552 Knockbacks 7 | . . . . . . . . 5 . . . . 2 . . . . . . . . . . . . . . . . . . . . . Impact 7 | . . . . . . . . 5 . . . . 2 . . . . . . . . . . . . . . . . . . . . . Kinetic . | . . . . . . . . . . . . . . . . . . . . . . . . . . . . . . . . . . . Secondary . | . . . . . . . . . . . . . . . . . . . . . . . . . . . . . . . . . . . Self-Inflicted Damage 250 | . . . . . . . . 65 . . . . . . . . . 169 . . . . 16 . . . . . . . . . . . Shots 5 | . . . . . . . . 2 . . . . . . . . . 2 . . . . 1 . . . . . . . . . . . Rammed . | . . . . . . . . . . . . . . . . . . . . . . . . . . . . . . . . . . . Targets Rammed . | . . . . . . . . . . . . . . . . . . . . . . . . . . . . . . . . . . . Kicked . | . . . . . . . . . . . . . . . . . . . . . . . . . . . . . . . . . . . Crushed . | . . . . . . . . . . . . . . . . . . . . . . . . . . . . . . . . . . . Highest Temperature 260 | . 46 41 54 . . 21 236 3 . . . . 260 132 108 . . 159 134 88 . 150 198 203 195 . 44 48 . 241 210 60 48 238 Average Temperature 46 | . 11 16 15 . . 9 30 3 . . . . 87 55 45 . . 46 47 34 . 63 70 71 66 . 19 20 . 42 92 33 24 130 Received Heat Transfer 2159 | . 192 99 354 27 . 234 783 66 18 . . . 131 75 . . . . 18 . . . 21 . . . . . . . 9 45 . 87 Siege Activations . | . . . . . . . . . . . . . . . . . . . . . . . . . . . . . . . . . . . Robots Corrupted . | . . . . . . . . . . . . . . . . . . . . . . . . . . . . . . . . . . . Combat Hostiles . | . . . . . . . . . . . . . . . . . . . . . . . . . . . . . . . . . . . Parts Fried 9 | . . . 1 . . . . 7 . . . . 1 . . . . . . . . . . . . . . . . . . . . . Impact Corruptions 15 | . . . . . . . . 12 . . . . 3 . . . . . . . . . . . . . . . . . . . . . Robots Melted 1 | . . . . . . . 1 . . . . . . . . . . . . . . . . . . . . . . . . . . . Combat Hostiles 1 | . . . . . . . 1 . . . . . . . . . . . . . . . . . . . . . . . . . . . Parts Melted 17 | . . . 4 . . 1 12 . . . . . . . . . . . . . . . . . . . . . . . . . . . Heat Transferred 11300 | . . . 2886 925 . 925 5846 37 . . . . . . 148 . . 496 . 37 . . . . . . . . . . . . . . Parts Sabotaged . | . . . . . . . . . . . . . . . . . . . . . . . . . . . . . . . . . . . Parts Stolen . | . . . . . . . . . . . . . . . . . . . . . . . . . . . . . . . . . . . Parts Stripped . | . . . . . . . . . . . . . . . . . . . . . . . . . . . . . . . . . . . Power Chain Reactions . | . . . . . . . . . . . . . . . . . . . . . . . . . . . . . . . . . . . Missiles Intercepted 10 | . . . . . . . . . . . . . . . . . . . . . . . . . . . . . . . . . . 10 Alert | -11 -10 -10 -9 -9 -9 -8 -8 -7 -7 -7 -7 -6 -6 -6 -6 -6 -5 -5 -5 -5 -5 -4 -4 -4 -4 -4 -3 -3 -3 -2 -2 -2 -1 -1 ------- Run | Scr Mat Min Mat Min Exi Min Mat Fac Low Low Zio Pro Fac Low Low Dat Pro Fac Upp Upp War Pro Fac Upp Upp Zhi Pro Res Qua Res Tes Sec Acc Com Peak Influence 775 | 5 231 107 623 375 . 150 461 681 . . . . 265 . . . . 744 . . . . 302 . . . . 101 212 583 438 323 775 481 Initial 327 | . 3 57 . 156 . . 1 107 . . . . . . . . . . . . . . . . . . . . . 94 327 189 193 . Average 165 | 1 79 43 282 220 . 52 211 254 . . . . 131 . . . . 158 . . . . 160 . . . . 41 57 152 345 240 279 268 Maximum Alert Level 3 | . 1 . 2 1 . . 2 2 . . . . 1 . . . . 3 . . . . 1 . . . . . 1 2 2 1 3 2 Low Security (%) 67 | 100 88 100 45 51 . 100 50 35 . . . . 87 . . . . 67 . . . . 75 . . . . 100 99 87 . 34 6 24 Level 1 26 | . 11 . 20 48 . . 45 53 . . . . 12 . . . . 29 . . . . 24 . . . . . . 7 72 66 85 65 Level 2 5 | . . . 33 . . . 4 10 . . . . . . . . . 3 . . . . . . . . . . . 4 27 . 7 9 Level 3 . | . . . . . . . . . . . . . . . . . . . . . . . . . . . . . . . . . 1 . Level 4 . | . . . . . . . . . . . . . . . . . . . . . . . . . . . . . . . . . . . Level 5 . | . . . . . . . . . . . . . . . . . . . . . . . . . . . . . . . . . . . High Security . | . . . . . . . . . . . . . . . . . . . . . . . . . . . . . . . . . . . Max Security . | . . . . . . . . . . . . . . . . . . . . . . . . . . . . . . . . . . . Squads Dispatched 46 | . 2 . 3 . . . 5 3 . . . . 7 . . . . 6 . 1 . . 5 . . . . 1 4 . . 2 3 4 Investigation 7 | . 1 . . . . . . 2 . . . . . . . . . 1 . . . . . . . . . . 1 . . . 1 1 Extermination 17 | . . . . . . . . 1 . . . . 2 . . . . 3 . . . . 4 . . . . 1 2 . . . 1 3 Reinforcement 20 | . 1 . 2 . . . 5 . . . . . 5 . . . . 2 . . . . 1 . . . . . 1 . . 2 1 . Assault 2 | . . . 1 . . . . . . . . . . . . . . . . 1 . . . . . . . . . . . . . . Garrison . | . . . . . . . . . . . . . . . . . . . . . . . . . . . . . . . . . . . Intercept . | . . . . . . . . . . . . . . . . . . . . . . . . . . . . . . . . . . . Construction Impeded 1 | . . . . . . . . . . . . . 1 . . . . . . . . . . . . . . . . . . . . . Haulers Reinforced . | . . . . . . . . . . . . . . . . . . . . . . . . . . . . . . . . . . . Stealth | -11 -10 -10 -9 -9 -9 -8 -8 -7 -7 -7 -7 -6 -6 -6 -6 -6 -5 -5 -5 -5 -5 -4 -4 -4 -4 -4 -3 -3 -3 -2 -2 -2 -1 -1 --------- Run | Scr Mat Min Mat Min Exi Min Mat Fac Low Low Zio Pro Fac Low Low Dat Pro Fac Upp Upp War Pro Fac Upp Upp Zhi Pro Res Qua Res Tes Sec Acc Com Distress Signals 41 | . 4 . 7 . . . 6 3 . . . . 2 . . . . 2 . . . . . . . . . . 2 8 2 3 . 2 Communications Jammed . | . . . . . . . . . . . . . . . . . . . . . . . . . . . . . . . . . . . Distress Signals . | . . . . . . . . . . . . . . . . . . . . . . . . . . . . . . . . . . . Times Spotted 409 | . 18 7 58 13 . 8 56 22 3 9 . . 33 9 . . 1 11 1 1 . . 26 8 1 . 2 4 20 23 6 16 17 36 Peak Tracking Total 14 | . 5 3 7 3 . 3 5 6 4 5 . . 6 8 . . 2 3 1 14 . . 5 5 2 . 1 3 4 5 5 12 4 4 Tactical Retreats 73 | . 1 1 9 . . 1 3 5 . 3 . . 10 3 . . . 3 1 4 . . 9 4 . . . . 4 4 2 1 3 2 Traps | -11 -10 -10 -9 -9 -9 -8 -8 -7 -7 -7 -7 -6 -6 -6 -6 -6 -5 -5 -5 -5 -5 -4 -4 -4 -4 -4 -3 -3 -3 -2 -2 -2 -1 -1 ------- Run | Scr Mat Min Mat Min Exi Min Mat Fac Low Low Zio Pro Fac Low Low Dat Pro Fac Upp Upp War Pro Fac Upp Upp Zhi Pro Res Qua Res Tes Sec Acc Com Traps Triggered 21 | . 1 . 2 . . . 1 1 . . . . 5 . . . . 2 . . . . 2 . . . . . . 1 . . 4 2 Indirectly . | . . . . . . . . . . . . . . . . . . . . . . . . . . . . . . . . . . . Trap Hack Attempts . | . . . . . . . . . . . . . . . . . . . . . . . . . . . . . . . . . . . Triggered . | . . . . . . . . . . . . . . . . . . . . . . . . . . . . . . . . . . . Disarmed . | . . . . . . . . . . . . . . . . . . . . . . . . . . . . . . . . . . . Reprogrammed . | . . . . . . . . . . . . . . . . . . . . . . . . . . . . . . . . . . . Reused 7 | . . . . . . . . . . . . . . . . . . . . . . . . . . . 7 . . . . . . . Traps Extracted . | . . . . . . . . . . . . . . . . . . . . . . . . . . . . . . . . . . . Installed 9 | . . . . . . . . . . . . . . . . . . . . . . . . . . . 9 . . . . . . . Triggered 20 | . . . . . . . . . 2 1 . . . . . . 3 . . 1 5 . . . . . 8 . . . . . . . Machines | -11 -10 -10 -9 -9 -9 -8 -8 -7 -7 -7 -7 -6 -6 -6 -6 -6 -5 -5 -5 -5 -5 -4 -4 -4 -4 -4 -3 -3 -3 -2 -2 -2 -1 -1 ---------- Run | Scr Mat Min Mat Min Exi Min Mat Fac Low Low Zio Pro Fac Low Low Dat Pro Fac Upp Upp War Pro Fac Upp Upp Zhi Pro Res Qua Res Tes Sec Acc Com Machines Disabled 34 | . . 1 2 1 . . 3 2 1 1 . . . . . . 1 13 . . . . . . . . . . 5 . 2 1 1 . Max in Single Turn 13 | . . 1 1 1 . . 1 2 1 1 . . . . . . 1 13 . . . . . . . . . . 1 . 1 1 1 . Garrison Access 15 | . . . . . . . 1 1 . . . . 3 . . . . 3 . . . . . . . . . 3 1 1 1 1 . . Machines Sabotaged . | . . . . . . . . . . . . . . . . . . . . . . . . . . . . . . . . . . . Garrisons Compromised . | . . . . . . . . . . . . . . . . . . . . . . . . . . . . . . . . . . . Overloaded Fab Kills . | . . . . . . . . . . . . . . . . . . . . . . . . . . . . . . . . . . . Fab Network Shutdowns 4 | . . . . . . . . 1 . . . . . . . . . 1 . . . . . . . . . . . 1 . . 1 . Hacking | -11 -10 -10 -9 -9 -9 -8 -8 -7 -7 -7 -7 -6 -6 -6 -6 -6 -5 -5 -5 -5 -5 -4 -4 -4 -4 -4 -3 -3 -3 -2 -2 -2 -1 -1 --------- Run | Scr Mat Min Mat Min Exi Min Mat Fac Low Low Zio Pro Fac Low Low Dat Pro Fac Upp Upp War Pro Fac Upp Upp Zhi Pro Res Qua Res Tes Sec Acc Com Machines Accessed 168 | . 7 . 9 . 1 . 6 18 1 . . . 22 . . 4 1 18 1 . 10 . 12 . 1 5 . 11 14 4 6 4 6 7 Terminals 97 | . 7 . 8 . . . 5 10 . . . . 11 . . . . 10 . . . . 8 . . . . 7 11 2 4 3 5 6 Fabricators 14 | . . . . . . . . 2 . . . . 4 . . . . 3 . . . . 2 . . . . 1 . 1 . . 1 . Repair Stations 12 | . . . 1 . . . . 3 . . . . 2 . . . . 2 . . . . 1 . . . . . 1 . 1 . . 1 Recycling Units . | . . . . . . . . . . . . . . . . . . . . . . . . . . . . . . . . . . . Scanalyzers 6 | . . . . . . . . 2 . . . . 2 . . . . . . . . . 1 . . . . . 1 . . . . . Garrison Access 15 | . . . . . . . 1 1 . . . . 3 . . . . 3 . . . . . . . . . 3 1 1 1 1 . . Total Hacks 506 | . 21 . 28 . 23 . 16 56 1 . . . 63 . . 25 1 48 1 . 15 . 43 . 1 18 . 32 34 17 11 11 26 15 Successful 378 | . 12 . 16 . 23 . 6 41 1 . . . 45 . . 25 1 30 1 . 15 . 34 . 1 18 . 28 28 9 9 6 17 12 Failed 126 | . 9 . 12 . . . 10 14 . . . . 18 . . . . 18 . . . . 9 . . . . 3 6 8 2 5 9 3 Catastrophic 16 | . 2 . 3 . . . 1 1 . . . . 3 . . . . 1 . . . . 2 . . . . . 2 . . . 1 . Database Lockouts 2 | . . . . . . . . 1 . . . . . . . . . . . . . . . . . . . 1 . . . . . . Manual 224 | . 14 . 9 . . . 11 27 1 . . . 35 . . . . 23 . . 1 . 20 . . . . 18 19 8 6 7 18 7 Terminals 310 | . 21 . 23 . . . 15 34 . . . . 43 . . . . 32 . . . . 25 . . . . 24 28 13 8 10 22 12 Fabricators 41 | . . . . . . . . 5 . . . . 9 . . . . 6 . . . . 10 . . . . 5 . 2 . . 4 . Repair Stations 36 | . . . 5 . . . . 8 . . . . 5 . . . . 6 . . . . 5 . . . . . 2 . 2 . . 3 Recycling Units . | . . . . . . . . . . . . . . . . . . . . . . . . . . . . . . . . . . . Scanalyzers 17 | . . . . . . . . 8 . . . . 3 . . . . . . . . . 3 . . . . . 3 . . . . . Garrison Access 17 | . . . . . . . 1 1 . . . . 3 . . . . 4 . . . . . . . . . 3 1 2 1 1 . . Terminal Hacks 227 | . 8 . 10 . 23 . 5 14 1 . . . 20 . . 25 1 12 1 . 15 . 17 . 1 18 . 17 14 6 2 2 11 4 Record 57 | . . . . . 23 . . . . . . . . . . 11 1 . . . 13 . . . . 6 . . 3 . . . . . Part Schematic 33 | . 2 . . . . . . 2 . . . . 6 . . 5 . 1 . . . . 7 . . 4 . 3 . 3 . . . . Robot Schematic 6 | . . . . . . . . . . . . . . . . 6 . . . . . . . . . . . . . . . . . . Robot Analysis 7 | . 1 . 2 . . . . . . . . . . . . . . . . . . . . . . 4 . . . . . . . . Prototype ID Bank 9 | . . . . . . . . . . . . . . . . 3 . . . . . . 1 . . 4 . 1 . . . . . . Open Door 6 | . . . . . . . . . 1 . . . . . . . . . 1 . 2 . . . 1 . . . . . . . . 1 Branch Access Points 7 | . . . 1 . . . 1 1 . . . . 1 . . . . 1 . . . . 1 . . . . 1 . . . . . . Emergency Access Points 3 | . . . . . . . 1 . . . . . . . . . . . . . . . . . . . . . 1 1 . . . . Machine Index 4 | . . . . . . . . . . . . . . . . . . . . . . . 1 . . . . . 1 1 . 1 . . Terminal Index 7 | . . . . . . . . 1 . . . . 1 . . . . 1 . . . . . . . . . 1 1 . . . 1 1 Fabricator Index 5 | . . . . . . . . 1 . . . . 1 . . . . . . . . . . . . . . 2 . . . . 1 . Repair Station Index 1 | . . . . . . . . 1 . . . . . . . . . . . . . . . . . . . . . . . . . . Scanalyzer Index 1 | . . . . . . . . 1 . . . . . . . . . . . . . . . . . . . . . . . . . . Alert Level 3 | . . . . . . . . 1 . . . . 1 . . . . . . . . . 1 . . . . . . . . . . . Unreport Threat 17 | . . . 2 . . . 2 2 . . . . . . . . . 2 . . . . . . . . . 3 . . . . 6 . Locate Traps 31 | . 4 . 3 . . . 1 3 . . . . 5 . . . . 3 . . . . 1 . . . . 2 4 . 2 1 1 1 Maintenance Status 1 | . . . 1 . . . . . . . . . . . . . . . . . . . . . . . . . . . . . . . Recall Investigation 1 | . . . . . . . . . . . . . . . . . . . . . . . . . . . . . 1 . . . . . Recall Extermination 12 | . . . . . . . . . . . . . 2 . . . . 3 . . . . 4 . . . . 1 2 . . . . . Recall Reinforcements 5 | . . . . . . . . . . . . . 2 . . . . 1 . . . . 1 . . . . . 1 . . . . . Hauler Manifests 2 | . 1 . 1 . . . . . . . . . . . . . . . . . . . . . . . . . . . . . . . Registered Components 2 | . . . . . . . . . . . . . . . . . . . . . . . . . . . . 1 . . . . 1 . Registered Prototypes 2 | . . . . . . . . . . . . . . . . . . . . . . . . . . . . 1 . 1 . . . . Zone Layout 4 | . . . . . . . . 1 . . . . 1 . . . . . . . . . . . . . . 1 . . . . 1 . Disengage Seal 1 | . . . . . . . . . . . . . . . . . . . . . . . . . . . . . . . . . . 1 Fabricator Hacks 33 | . . . . . . . . 4 . . . . 7 . . . . 4 . . . . 8 . . . . 4 . 2 . . 4 . Load Schematic 15 | . . . . . . . . 2 . . . . 4 . . . . 2 . . . . 2 . . . . 2 . 1 . . 2 . Build 18 | . . . . . . . . 2 . . . . 3 . . . . 2 . . . . 6 . . . . 2 . 1 . . 2 . Repair Station Hacks 33 | . . . 4 . . . . 8 . . . . 5 . . . . 5 . . . . 4 . . . . . 2 . 2 . . 3 Scan Component 17 | . . . 2 . . . . 4 . . . . 2 . . . . 3 . . . . 2 . . . . . 1 . 1 . . 2 Repair 14 | . . . 2 . . . . 3 . . . . 2 . . . . 2 . . . . 2 . . . . . 1 . 1 . . 1 Refit 2 | . . . . . . . . 1 . . . . 1 . . . . . . . . . . . . . . . . . . . . . Recycling Unit Hacks . | . . . . . . . . . . . . . . . . . . . . . . . . . . . . . . . . . . . Scanalyzer 16 | . . . . . . . . 8 . . . . 3 . . . . . . . . . 2 . . . . . 3 . . . . . Insert Component 12 | . . . . . . . . 4 . . . . 3 . . . . . . . . . 2 . . . . . 3 . . . . . Analyze 4 | . . . . . . . . 4 . . . . . . . . . . . . . . . . . . . . . . . . . . Garrison Access Hacks 15 | . . . . . . . 1 1 . . . . 3 . . . . 3 . . . . . . . . . 3 1 1 1 1 . . Seal Access 15 | . . . . . . . 1 1 . . . . 3 . . . . 3 . . . . . . . . . 3 1 1 1 1 . . Unauthorized Hacks 54 | . 4 . 2 . . . . 6 . . . . 7 . . . . 6 . . . . 3 . . . . 4 8 . 4 3 2 5 Terminals 47 | . 4 . 2 . . . . 6 . . . . 5 . . . . 4 . . . . 1 . . . . 3 8 . 4 3 2 5 Track 19 | . 2 . 1 . . . . 1 . . . . . . . . . . . . . . . . . . . . 2 . 4 3 2 4 Assimilate 15 | . . . . . . . . 3 . . . . 4 . . . . 2 . . . . . . . . . 1 4 . . . . 1 Botnet 13 | . 2 . 1 . . . . 2 . . . . 1 . . . . 2 . . . . 1 . . . . 2 2 . . . . . Fabricators 7 | . . . . . . . . . . . . . 2 . . . . 2 . . . . 2 . . . . 1 . . . . . . Report 2 | . . . . . . . . . . . . . . . . . . 1 . . . . 1 . . . . . . . . . . . Prioritize 1 | . . . . . . . . . . . . . 1 . . . . . . . . . . . . . . . . . . . . . Siphon 4 | . . . . . . . . . . . . . 1 . . . . 1 . . . . 1 . . . . 1 . . . . . . Repair Stations . | . . . . . . . . . . . . . . . . . . . . . . . . . . . . . . . . . . . Recycling Units . | . . . . . . . . . . . . . . . . . . . . . . . . . . . . . . . . . . . Scanalyzers . | . . . . . . . . . . . . . . . . . . . . . . . . . . . . . . . . . . . Garrison Access . | . . . . . . . . . . . . . . . . . . . . . . . . . . . . . . . . . . . Data Cores Recovered 1 | . . . . . . . 1 . . . . . . . . . . . . . . . . . . . . . . . . . . . Used . | . . . . . . . . . . . . . . . . . . . . . . . . . . . . . . . . . . . Hacking Detections 104 | . 6 . 8 . . . 5 15 . . . . 12 . . . . 13 . . . . 10 . . . . 5 8 3 5 3 5 6 Full Trace Events 7 | . 1 . 1 . . . . 2 . . . . . . . . . 1 . . . . . . . . . . 1 . . . 1 . Feedback Events . | . . . . . . . . . . . . . . . . . . . . . . . . . . . . . . . . . . . Feedback Blocked . | . . . . . . . . . . . . . . . . . . . . . . . . . . . . . . . . . . . Robot Schematics Acquired 6 | . . . . . . . . . . . . . . . . 6 . . . . . . . . . . . . . . . . . . Robots Built . | . . . . . . . . . . . . . . . . . . . . . . . . . . . . . . . . . . . Matter . | . . . . . . . . . . . . . . . . . . . . . . . . . . . . . . . . . . . Time . | . . . . . . . . . . . . . . . . . . . . . . . . . . . . . . . . . . . Total Robot Build Rating . | . . . . . . . . . . . . . . . . . . . . . . . . . . . . . . . . . . . Part Schematics Acquired 36 | . 2 . . . . . . 6 . . . . 6 . . 5 . 1 . . . . 7 . . 4 . 3 . 2 . . . . Parts Built 19 | . . . . . . . . 3 . . . . 3 . . . . 2 . . . . 6 . . . . 2 . 1 . . 2 . Matter 4048 | . . . . . . . . 314 . . . . 710 . . . . 531 . . . . 1113 . . . . 525 . 285 . . 570 . Time 1528 | . . . . . . . . 52 . . . . 258 . . . . 245 . . . . 636 . . . . 187 . 50 . . 100 . Total Part Build Rating 102 | . . . . . . . . 10 . . . . 16 . . . . 11 . . . . 36 . . . . 14 . 5 . . 10 . Parts Repaired 14 | . . . 2 . . . . 3 . . . . 2 . . . . 2 . . . . 2 . . . . . 1 . 1 . . 1 Time 397 | . . . 52 . . . . 64 . . . . 66 . . . . 47 . . . . 56 . . . . . 56 . 34 . . 22 Parts Recycled . | . . . . . . . . . . . . . . . . . . . . . . . . . . . . . . . . . . . Recycled Matter . | . . . . . . . . . . . . . . . . . . . . . . . . . . . . . . . . . . . Retrieved Matter . | . . . . . . . . . . . . . . . . . . . . . . . . . . . . . . . . . . . Retrieved Components . | . . . . . . . . . . . . . . . . . . . . . . . . . . . . . . . . . . . Parts Scanalyzed 5 | . . . . . . . . 4 . . . . . . . . . . . . . . 1 . . . . . . . . . . . Part Schematics Acquired 4 | . . . . . . . . 4 . . . . . . . . . . . . . . . . . . . . . . . . . . Parts Damaged . | . . . . . . . . . . . . . . . . . . . . . . . . . . . . . . . . . . . Bothacking | -11 -10 -10 -9 -9 -9 -8 -8 -7 -7 -7 -7 -6 -6 -6 -6 -6 -5 -5 -5 -5 -5 -4 -4 -4 -4 -4 -3 -3 -3 -2 -2 -2 -1 -1 ------------ Run | Scr Mat Min Mat Min Exi Min Mat Fac Low Low Zio Pro Fac Low Low Dat Pro Fac Upp Upp War Pro Fac Upp Upp Zhi Pro Res Qua Res Tes Sec Acc Com Used RIF Installer . | . . . . . . . . . . . . . . . . . . . . . . . . . . . . . . . . . . . Robots Hacked . | . . . . . . . . . . . . . . . . . . . . . . . . . . . . . . . . . . . Non-combat . | . . . . . . . . . . . . . . . . . . . . . . . . . . . . . . . . . . . Combat . | . . . . . . . . . . . . . . . . . . . . . . . . . . . . . . . . . . . Robot Hacks Applied . | . . . . . . . . . . . . . . . . . . . . . . . . . . . . . . . . . . . Relay Couplers Released . | . . . . . . . . . . . . . . . . . . . . . . . . . . . . . . . . . . . Robots Rewired . | . . . . . . . . . . . . . . . . . . . . . . . . . . . . . . . . . . . Allies Hacked 1 | . . . . . . . . . . . . . . . . . . . . . . . . . . . . . 1 . . . . . Hacks Repelled . | . . . . . . . . . . . . . . . . . . . . . . . . . . . . . . . . . . . Allies | -11 -10 -10 -9 -9 -9 -8 -8 -7 -7 -7 -7 -6 -6 -6 -6 -6 -5 -5 -5 -5 -5 -4 -4 -4 -4 -4 -3 -3 -3 -2 -2 -2 -1 -1 -------- Run | Scr Mat Min Mat Min Exi Min Mat Fac Low Low Zio Pro Fac Low Low Dat Pro Fac Upp Upp War Pro Fac Upp Upp Zhi Pro Res Qua Res Tes Sec Acc Com Total Allies 16 | . . . . 1 . . . 3 . . . . 3 . . . 1 2 . . . . . . . . . 1 4 . . . . 1 Largest Group 4 | . . . . 1 . . . 1 . . . . 2 . . . 1 1 . . . . . . . . . 1 4 . . . . 1 Highest-Rated Group 94 | . . . . 31 . . . 26 . . . . 52 . . . 94 26 . . . . . . . . . 10 88 . . . . 44 Highest-Rated Ally 94 | . . . . 31 . . . 26 . . . . 26 . . . 94 26 . . . . . . . . . 10 26 . . . . 44 Total Orders 5 | . . . . . . . . 2 . . . . 1 . . . . . . . . . . . . . 1 . 1 . . . . . STAY 3 | . . . . . . . . 1 . . . . 1 . . . . . . . . . . . . . . . 1 . . . . . FOLLOW 1 | . . . . . . . . 1 . . . . . . . . . . . . . . . . . . . . . . . . . . EXPLORE 1 | . . . . . . . . . . . . . . . . . . . . . . . . . . . 1 . . . . . . . Ally Attacks 11 | . . . . 10 . . . . . . . . . . . . 1 . . . . . . . . . . . . . . . . . Total Damage 153 | . . . . 107 . . . . . . . . . . . . 46 . . . . . . . . . . . . . . . . . Kills 2 | . . . . 2 . . . . . . . . . . . . . . . . . . . . . . . . . . . . . . Allies Corrupted 2 | . . . . . . . . 2 . . . . . . . . . . . . . . . . . . . . . . . . . . Allies Melted 1 | . . . . . . . . . . . . . . . . . . . . . . . . . . . . . . 1 . . . . Intel | -11 -10 -10 -9 -9 -9 -8 -8 -7 -7 -7 -7 -6 -6 -6 -6 -6 -5 -5 -5 -5 -5 -4 -4 -4 -4 -4 -3 -3 -3 -2 -2 -2 -1 -1 ------- Run | Scr Mat Min Mat Min Exi Min Mat Fac Low Low Zio Pro Fac Low Low Dat Pro Fac Upp Upp War Pro Fac Upp Upp Zhi Pro Res Qua Res Tes Sec Acc Com Robot Analysis Total 7 | . 1 . 2 . . . . . . . . . . . . . . . . . . . . . . 4 . . . . . . . . Derelict Logs Recovered 18 | . . 2 . 2 . . . . 1 1 1 1 . . 2 . . . 3 1 . 1 . 1 2 . . . . . . . . . Drone Launches 3 | . . . . . . . . . . . . . . . . . . . . . . . . . . . 3 . . . . . . . Drone Recoveries . | . . . . . . . . . . . . . . . . . . . . . . . . . . . . . . . . . . . Exploration | -11 -10 -10 -9 -9 -9 -8 -8 -7 -7 -7 -7 -6 -6 -6 -6 -6 -5 -5 -5 -5 -5 -4 -4 -4 -4 -4 -3 -3 -3 -2 -2 -2 -1 -1 ------------- Run | Scr Mat Min Mat Min Exi Min Mat Fac Low Low Zio Pro Fac Low Low Dat Pro Fac Upp Upp War Pro Fac Upp Upp Zhi Pro Res Qua Res Tes Sec Acc Com Turns Passed 36919 | 111 1156 1299 2055 1258 749 605 2019 1094 814 958 447 790 2511 987 404 31 182 2030 574 725 362 738 1874 1037 639 151 4792 1255 1583 1269 644 100 640 1036 Spaces Moved 43902 | 59 584 690 853 657 392 259 758 2041 1177 1289 858 974 4120 1130 1013 90 504 3755 924 951 749 1009 2971 1090 1103 191 2647 2232 2891 2794 814 215 951 1167 Core 5 | 4 . . 1 . . . . . . . . . . . . . . . . . . . . . . . . . . . . . . . Treads 4252 | 55 584 690 852 657 392 259 757 6 . . . . . . . . . . . . . . . . . . . . . . . . . . Legs 1 | . . . . . . . 1 . . . . . . . . . . . . . . . . . . . . . . . . . . . Wheels . | . . . . . . . . . . . . . . . . . . . . . . . . . . . . . . . . . . . Hover . | . . . . . . . . . . . . . . . . . . . . . . . . . . . . . . . . . . . Flight 39644 | . . . . . . . . 2035 1177 1289 858 974 4120 1130 1013 90 504 3755 924 951 749 1009 2971 1090 1103 191 2647 2232 2891 2794 814 215 951 1167 Fastest Speed 27 | 50 160 180 180 180 180 200 175 29 29 29 29 29 29 32 34 34 34 34 37 37 32 32 32 32 32 27 27 27 28 34 34 34 34 34 Average Speed 46 | 152 169 180 181 180 190 200 188 29 29 29 29 29 30 36 34 34 34 36 37 37 35 32 32 32 32 30 27 27 31 34 34 34 34 34 Slowest Speed 1050 | 160 180 180 1050 180 200 200 390 175 29 29 29 29 32 99 99 34 34 37 37 37 37 32 32 32 32 103 27 28 34 34 34 34 34 40 Overloaded Moves . | . . . . . . . . . . . . . . . . . . . . . . . . . . . . . . . . . . . Propulsion Burnouts . | . . . . . . . . . . . . . . . . . . . . . . . . . . . . . . . . . . . Robots Hopped 89 | . . . . . . . . 6 1 . . . 28 1 . . . 10 1 . . . 12 . . . . 13 9 4 1 1 1 1 Cave-ins Triggered 1 | . . . . . . . . . . . . . . . . . . . . . . . . . . . . . . . 1 . . . Exploration Rate (%) 70 | 4 95 97 78 98 79 53 66 61 84 90 85 87 79 85 92 69 58 72 92 79 93 85 36 80 89 55 74 41 95 70 72 17 28 34 Regions Visited 34 Branch Regions 24 Pre-discovered Areas 9 | . . . . . 1 . . . . . . . . . . 1 . . 1 . 2 . . . 1 3 . . . . . . . . Known Exits Taken 26 | . . . 1 . . . . 1 1 1 1 1 1 1 1 1 1 1 1 1 1 1 1 1 1 1 1 1 1 1 . 1 1 . Unknown Exits Taken 8 | 1 1 1 . 1 1 1 1 . . . . . . . . . . . . . . . . . . . . . . . 1 . . . Scrap Searched 38 | . . 2 . 1 . . . . 2 5 1 2 . . 4 . 3 . 2 3 . 3 . 1 5 . 4 . . . . . . . Spaces Dug 521 | . . . . 12 . . . 38 5 25 . 5 63 . 4 . . 70 14 5 . 8 72 14 18 . 8 50 39 28 9 3 22 9 Terrain Destroyed 1093 | . . . 11 50 . . . 82 5 39 . 5 70 . 4 . . 111 15 5 . 8 97 146 63 . 163 50 81 45 9 3 22 9 Melee 274 | . . . . . . . . 38 5 25 . 5 59 . . . . 32 . . . 1 25 . 4 . . 20 16 7 9 1 18 9 Projectile 261 | . . . . . . . . . . . . . 4 . 4 . . 44 15 5 . 7 49 24 19 . 8 30 24 22 . 2 4 . AOE 558 | . . . 11 50 . . . 44 . 14 . . 7 . . . . 35 . . . . 23 122 40 . 155 . 41 16 . . . . Terrain Rammed . | . . . . . . . . . . . . . . . . . . . . . . . . . . . . . . . . . . . Walls Destroyed . | . . . . . . . . . . . . . . . . . . . . . . . . . . . . . . . . . . . Machines Disabled . | . . . . . . . . . . . . . . . . . . . . . . . . . . . . . . . . . . . Actions | -11 -10 -10 -9 -9 -9 -8 -8 -7 -7 -7 -7 -6 -6 -6 -6 -6 -5 -5 -5 -5 -5 -4 -4 -4 -4 -4 -3 -3 -3 -2 -2 -2 -1 -1 --------- Run | Scr Mat Min Mat Min Exi Min Mat Fac Low Low Zio Pro Fac Low Low Dat Pro Fac Upp Upp War Pro Fac Upp Upp Zhi Pro Res Qua Res Tes Sec Acc Com Total 58590 | 74 673 720 1187 692 395 299 1097 2437 1636 1803 1055 1470 5200 1701 1057 89 513 4267 1139 1317 844 1416 3761 1741 1359 278 6706 2778 3471 3048 1151 233 1219 1764 Wait 12503 | . 12 5 128 7 . 10 109 279 450 478 198 492 928 560 17 . 2 354 200 355 85 396 672 614 227 59 3970 468 456 146 294 12 112 408 Move 43697 | 58 583 689 852 656 391 258 757 2029 1174 1288 857 973 4068 1127 1012 89 503 3735 921 950 748 1008 2946 1089 1102 190 2646 2206 2872 2785 810 212 948 1165 Hop 81 | . . . . . . . . 5 1 . . . 23 1 . . . 9 1 . . . 12 . . . . 12 9 4 1 1 1 1 Pick Up 247 | 7 16 3 35 1 . 2 27 8 1 . . . 11 . 2 . 2 16 1 1 1 2 7 . 1 2 24 14 21 18 6 . 14 4 Fast Attach 113 | 5 2 1 11 . . . 8 6 1 . . . 3 . . . 1 10 . 2 5 . 8 2 . 12 1 3 8 5 4 1 3 11 Attach 94 | 1 1 1 6 1 . 3 5 20 . . . . 5 5 6 . 1 2 . . . 1 3 . . . 2 1 7 2 5 . 8 8 Detach 27 | . . . . . . . . 5 . . . . . 4 6 . 1 1 . . . . 3 . . . . . 2 1 2 . 2 . Swap 132 | 1 4 . 20 3 2 . 16 4 1 2 . . 13 . 1 . . 5 . 1 . . 10 1 3 . 3 1 6 15 3 3 9 5 Drop 303 | . 9 3 34 1 2 . 38 25 2 . . . 14 . 1 . 2 16 1 2 5 1 6 2 1 12 27 12 28 22 6 . 16 15 Fire 673 | 2 46 18 101 23 . 26 137 5 . 2 . . 11 . 8 . . 53 15 6 . 7 51 32 21 . 19 30 29 25 . 2 4 . Melee 570 | . . . . . . . . 51 6 33 . 5 76 4 4 . 1 46 . . . 1 43 1 4 3 5 31 33 25 19 2 30 147 Ram . | . . . . . . . . . . . . . . . . . . . . . . . . . . . . . . . . . . . Kick . | . . . . . . . . . . . . . . . . . . . . . . . . . . . . . . . . . . . Crush . | . . . . . . . . . . . . . . . . . . . . . . . . . . . . . . . . . . . Escape Stasis 141 | . . . . . . . . . . . . . 48 . . . . 20 . . . . . . . . . . . . 1 . 72 . Rewire . | . . . . . . . . . . . . . . . . . . . . . . . . . . . . . . . . . . . Trap 9 | . . . . . . . . . . . . . . . . . . . . . . . . . . . 9 . . . . . . . Miscellaneous . | . . . . . . . . . . . . . . . . . . . . . . . . . . . . . . . . . . . Route ------- -11/Scrapyard -10/Materials (discovered 4 exits: *Mat x3 / [*Min]) -10/Mines (discovered 2 exits: *Mat x2) -9/Materials (discovered 3 exits: *Mat x2 / *Min) -9/Mines (discovered 4 exits: *Mat x2 / *Exi / *Zio) -9/Exiles -8/Mines (discovered 2 exits: *Mat x2) -8/Materials (discovered 4 exits: *Fac x2 / *Sto x2) -7/Factory (discovered 3 exits: *Fac / *Low x2) -7/Lower Caves -7/Lower Caves (discovered 2 exits: Fac / *Zio) -7/Zion -6/Proximity Caves -6/Factory (discovered 5 exits: *Fac x3 / *Low x2) -6/Lower Caves -6/Lower Caves (discovered 2 exits: *Fac / *Dat) -6/Data Miner -5/Proximity Caves -5/Factory (discovered 7 exits: *Fac x3 / *Upp x2 / *Ext x2) -5/Upper Caves -5/Upper Caves (discovered 2 exits: *Fac / *War) -5/Warlord -4/Proximity Caves -4/Factory (discovered 4 exits: Res / *Upp x2 / Arm) -4/Upper Caves -4/Upper Caves (discovered 2 exits: *Res / *Zhi) -4/Zhirov -3/Proximity Caves -3/Research (discovered 2 exits: *Qua x2) -3/Quarantine -2/Research (discovered 3 exits: *Acc x2 / *Tes) -2/Testing -2/Section 7 -1/Access -1/Command Free Derelict Territories History --------- Turn | Location | Event 5 | -11/Scrapyard | Discovered new exit (range 15) 112 | -11/Scrapyard | Entered Materials 309 | -10/Materials | Build established: Mutant 544 | -10/Materials | Discovered new exit (range 4) 845 | -10/Materials | Discovered new exit (range 12) 946 | -10/Materials | Discovered new exit (range 7) 1135 | -10/Materials | Discovered new exit (range 4) 1268 | -10/Materials | Entered Mines 1390 | -10/Mines | Core integrity fell below 50% 1598 | -10/Mines | Discovered new exit (range 7) 2177 | -10/Mines | Learned Materials terminal intel 2238 | -10/Mines | Learned Materials interactive machine intel 2472 | -10/Mines | Discovered new exit (range 7) 2567 | -10/Mines | Entered Materials 2567 | -9/Materials | Evolved 2 slots: Utility x2 2568 | -9/Materials | Loaded intel: 18 interactive machine locations 2569 | -9/Materials | Loaded intel: 12 terminal locations 2595 | -9/Materials | Identified exit to Mines 2892 | -9/Materials | Build established: Hauler-Mutant 3840 | -9/Materials | Discovered new exit (range 4) 4131 | -9/Materials | Destroyed 8 combat bots 4219 | -9/Materials | Discovered new exit (range 8) 4527 | -9/Materials | Repaired Lgt. Treads 4555 | -9/Materials | Repaired Lgt. Treads 4567 | -9/Materials | First assault squad dispatched 4622 | -9/Materials | Entered Mines 4797 | -9/Mines | Discovered new exit (range 4) 4869 | -9/Mines | Received a Mining Laser from a helpful Derelict 4958 | -9/Mines | A Derelict revealed a hidden shortcut to a safe place 5225 | -9/Mines | Deemed a non-threat by the Exiles lab entrance 5225 | -9/Mines | Discovered new exit (range 5) 5611 | -9/Mines | Discovered new exit (range 10) 5880 | -9/Mines | Entered Exiles 5933 | -9/Exiles | Met 8R-AWN 5967 | -9/Exiles | Met EX-HEX 6024 | -9/Exiles | Met EX-BIN 6154 | -9/Exiles | Met EX-DEC 6296 | -9/Exiles | Visited The Gauntlet 6473 | -9/Exiles | Learned location of Zion (-7) 6577 | -9/Exiles | Discovered new exit (range 14) 6629 | -9/Exiles | Entered Mines 6882 | -8/Mines | Discovered new exit (range 11) 7110 | -8/Mines | Discovered new exit (range 9) 7234 | -8/Mines | Entered Materials 7234 | -8/Materials | Evolved 2 slots: Propulsion x1, Utility x1 7235 | -8/Materials | Identified exit to Storage 7617 | -8/Materials | Discovered exit to Storage (range 5) 7705 | -8/Materials | Discovered new exit (range 8) 9226 | -8/Materials | Discovered new exit (range 5) 9253 | -8/Materials | Entered Factory 9253 | -7/Factory | Evolved 2 slots: Utility x2 9253 | -7/Factory | Discovered new exit (range 9) 9254 | -7/Factory | Identified exit to Lower Caves 9365 | -7/Factory | Central database locked down 9486 | -7/Factory | Fabricated Lrn. Sensor Array (x1) 9632 | -7/Factory | Fabricated Adv. Signal Interpreter (x2) 9794 | -7/Factory | Lost 3 parts (1p1n1w) 9796 | -7/Factory | Discovered new exit (range 4) 9796 | -7/Factory | Identified exit to Factory 9848 | -7/Factory | Repaired Lrn. Sensor Array 10050 | -7/Factory | Local fabrication network quarantined 10122 | -7/Factory | Repaired Imp. Flight Unit 10342 | -7/Factory | Repaired Imp. Flight Unit 10347 | -7/Factory | Entered Lower Caves 10367 | -7/Lower Caves | Encountered a Warlord checkpoint 10465 | -7/Lower Caves | Acquired the password to a Derelict Tinkerer's latest research 10646 | -7/Lower Caves | Build established: Hacker-Sprinter 10808 | -7/Lower Caves | Learned Factory security intel 11155 | -7/Lower Caves | Caught by Unaware searching for contraband prototypes 11157 | -7/Lower Caves | Discovered new exit (range 11) 11160 | -7/Lower Caves | Identified exit to Lower Caves 11161 | -7/Lower Caves | Entered another Lower Caves area 11259 | -7/Lower Caves | Encountered a Warlord checkpoint 12088 | -7/Lower Caves | Discovered new exit (range 15) 12092 | -7/Lower Caves | Identified exit to Zion 12119 | -7/Lower Caves | Entered Zion 12133 | -7/Zion | Discovered new exit (range 13) 12236 | -7/Zion | Received a visual enhancement algorithm 12321 | -7/Zion | Visited the Megawrench Repair Shop 12410 | -7/Zion | Learned Factory interactive machine intel 12513 | -7/Zion | Megawrench repaired 3 parts 12550 | -7/Zion | Identified exit to Proximity Caves 12566 | -7/Zion | Entered Proximity Caves 13300 | -6/Proximity Caves | Spotted B-75 Beast 13356 | -6/Proximity Caves | Entered Factory 13356 | -6/Factory | Evolved 2 slots: Utility x2 13358 | -6/Factory | Loaded intel: 46 interactive machine locations 13609 | -6/Factory | Identified exit to Lower Caves 14417 | -6/Factory | Discovered new exit (range 14) 14477 | -6/Factory | Build established: Wizard-Sprinter 14556 | -6/Factory | Repaired Lrn. Sensor Array 14814 | -6/Factory | Discovered new exit (range 16) 14857 | -6/Factory | Discovered new exit (range 10) 14949 | -6/Factory | Repaired Lrn. Sensor Array 15087 | -6/Factory | Fabricated Exp. Sensor Array? 15098 | -6/Factory | Fabricated Exp. Signal Interpreter? 15552 | -6/Factory | Fabricated Adv. Hacking Suite (x1) 15867 | -6/Factory | Entered Lower Caves 15900 | -6/Lower Caves | Spotted B-75 Beast 15968 | -6/Lower Caves | Attracted the attention of an 0b10 checkpoint 15976 | -6/Lower Caves | Encountered a Warlord checkpoint 16085 | -6/Lower Caves | Discovered new exit (range 4) 16087 | -6/Lower Caves | Identified exit to Lower Caves 16274 | -6/Lower Caves | Build established: Hacker-Mutant 16854 | -6/Lower Caves | Entered another Lower Caves area 16857 | -6/Lower Caves | Learned Factory stockpile data 16867 | -6/Lower Caves | Encountered a Warlord checkpoint 16876 | -6/Lower Caves | Discovered new exit (range 16) 16882 | -6/Lower Caves | Identified exit to Factory 17067 | -6/Lower Caves | Spotted B-75 Beast 17080 | -6/Lower Caves | Learned location of 2 exits from Factory 17231 | -6/Lower Caves | Discovered new exit (range 6) 17233 | -6/Lower Caves | Identified exit to Data Miner 17258 | -6/Lower Caves | Entered Data Miner 17258 | -6/Data Miner | Discovered new exit (range 6) 17265 | -6/Data Miner | Met Data Miner 17272 | -6/Data Miner | Learned location of Section 7 (-2) 17272 | -6/Data Miner | Acquired the access code to Warlord's prototype stash 17278 | -6/Data Miner | Received God Mode back door access code from Data Miner 17288 | -6/Data Miner | Identified exit to Proximity Caves 17289 | -6/Data Miner | Entered Proximity Caves 17395 | -5/Proximity Caves | Found Alien Artifact 17465 | -5/Proximity Caves | Discovered exit to Factory (range 16) 17471 | -5/Proximity Caves | Entered Factory 17471 | -5/Factory | Evolved 2 slots: Power x1, Propulsion x1 17472 | -5/Factory | Identified exit to Factory 17577 | -5/Factory | Discovered new exit (range 13) 17674 | -5/Factory | Identified exit to Upper Caves 17674 | -5/Factory | Identified exit to Extension 17882 | -5/Factory | Discovered exit to Factory (range 15) 18276 | -5/Factory | Repaired Lgt. Nuclear Core 18306 | -5/Factory | Repaired Nuclear Pulse Array 18652 | -5/Factory | Build established: Wizard-Mutant 18995 | -5/Factory | Local fabrication network quarantined 19004 | -5/Factory | Fabricated Exp. Sensor Array (x1) 19134 | -5/Factory | Fabricated Mni. Smartbomb Launcher? 19501 | -5/Factory | Entered Upper Caves 19686 | -5/Upper Caves | Learned location of 2 exits from Factory 19782 | -5/Upper Caves | Learned location of Armory (-4) 20065 | -5/Upper Caves | Discovered new exit (range 12) 20066 | -5/Upper Caves | Learned location of 1 exit from Upper Caves 20071 | -5/Upper Caves | Identified exit to Upper Caves 20075 | -5/Upper Caves | Entered another Upper Caves area 20076 | -5/Upper Caves | Identified exit to Warlord 20157 | -5/Upper Caves | Learned Factory emergency access door positions 20257 | -5/Upper Caves | Found Alien Artifact 20257 | -5/Upper Caves | Identified Core Expander 20257 | -5/Upper Caves | Installed Core Expander, added new Propulsion slot 20274 | -5/Upper Caves | Discovered exit to Factory (range 11) 20313 | -5/Upper Caves | Encountered a Warlord checkpoint 20417 | -5/Upper Caves | Attracted the attention of an 0b10 outpost 20719 | -5/Upper Caves | Build established: Hacker-Mutant 20793 | -5/Upper Caves | Spotted B-75 Beast 20800 | -5/Upper Caves | Entered Warlord 20816 | -5/Warlord | Discovered new exit (range 8) 20989 | -5/Warlord | Met Warlord 20993 | -5/Warlord | Opened Warlord's prototype stash 20995 | -5/Warlord | Found Prototype Processor 20995 | -5/Warlord | Identified Exp. Core Analyzer 21001 | -5/Warlord | Found Prototype Device 21001 | -5/Warlord | Identified Exp. Phase Shifter 21009 | -5/Warlord | Warlord's base attacked by MAIN.C 21055 | -5/Warlord | Learned location of Quarantine (-3) 21056 | -5/Warlord | Learned 4 Armory zone layouts 21056 | -5/Warlord | Learned Armory security intel 21056 | -5/Warlord | Learned Testing security intel 21056 | -5/Warlord | Learned Armory terminal intel 21139 | -5/Warlord | Opened side exit 21162 | -5/Warlord | Identified exit to Proximity Caves 21162 | -5/Warlord | Entered Proximity Caves 21230 | -4/Proximity Caves | Learned Research garrison access intel 21238 | -4/Proximity Caves | Spotted B-86 Titan 21461 | -4/Proximity Caves | Build established: Wizard-Sprinter 21860 | -4/Proximity Caves | Discovered exit to Factory (range 5) 21900 | -4/Proximity Caves | Entered Factory 21900 | -4/Factory | Evolved 2 slots: Utility x2 21901 | -4/Factory | Identified exit to Research 21901 | -4/Factory | Identified exit to Upper Caves 22123 | -4/Factory | Identified Dimensional Node Initializer 22136 | -4/Factory | Identified exit to Armory 22652 | -4/Factory | Repaired Mic. Fission Core 22791 | -4/Factory | Repaired Nuclear Pulse Array 23352 | -4/Factory | Fabricated Adv. Hacking Suite? 23357 | -4/Factory | Fabricated Adv. Hacking Suite? 23531 | -4/Factory | Fabricated Adv. Hacking Suite? 23534 | -4/Factory | Fabricated Adv. Hacking Suite (x1) 23650 | -4/Factory | Fabricated Adv. Hacking Suite? 23654 | -4/Factory | Fabricated Adv. Hacking Suite (x1) 23774 | -4/Factory | Entered Upper Caves 24746 | -4/Upper Caves | Learned Research trap positions 24793 | -4/Upper Caves | Discovered new exit (range 9) 24810 | -4/Upper Caves | Identified exit to Upper Caves 24811 | -4/Upper Caves | Entered another Upper Caves area 24824 | -4/Upper Caves | Discovered exit to Research (range 9) 24827 | -4/Upper Caves | Learned 4 Research zone layouts 25006 | -4/Upper Caves | Learned location of Testing (-2) 25379 | -4/Upper Caves | Discovered new exit (range 5) 25380 | -4/Upper Caves | Identified exit to Zhirov 25450 | -4/Upper Caves | Entered Zhirov 25450 | -4/Zhirov | Discovered new exit (range 3) 25456 | -4/Zhirov | Met Zhirov 25464 | -4/Zhirov | Learned location of Command (-1) 25466 | -4/Zhirov | Zhirov requested help retrieving the SGEMP Prototype 25472 | -4/Zhirov | Found Alien Artifact 25472 | -4/Zhirov | Identified Integrated Dissipator 25472 | -4/Zhirov | Installed Integrated Dissipator, increased core heat dissipation (+20) 25599 | -4/Zhirov | Identified exit to Proximity Caves 25601 | -4/Zhirov | Entered Proximity Caves 30322 | -3/Proximity Caves | Discovered exit to Research (range 8) 30393 | -3/Proximity Caves | Entered Research 30393 | -3/Research | Evolved 2 slots: Propulsion x1, Utility x1 30395 | -3/Research | Loaded intel: 74 trap records 30396 | -3/Research | Loaded intel: 4 garrison access locations 30485 | -3/Research | Identified exit to Quarantine 30694 | -3/Research | Central database locked down 31475 | -3/Research | Fabricated Femtoactuators (x1) 31553 | -3/Research | Fabricated Exp. Utility Shielding (x1) 31648 | -3/Research | Entered Quarantine 31696 | -3/Quarantine | Found Unknown Piercing Weapon 31696 | -3/Quarantine | Identified Enh. Force Lance 31738 | -3/Quarantine | Found Alien Artifact 31822 | -3/Quarantine | Repaired Mic. Fission Core 31861 | -3/Quarantine | Found Alien Artifact 31893 | -3/Quarantine | Identified Transdimensional Reconstructor 31910 | -3/Quarantine | Found Alien Artifact 31931 | -3/Quarantine | Found Alien Artifact 31931 | -3/Quarantine | Identified Subatomic Replicator 32155 | -3/Quarantine | Found Alien Artifact 32192 | -3/Quarantine | Identified Hpw. Transdimensional Reconstructor 32192 | -3/Quarantine | Identified Core Reset Matrix 32252 | -3/Quarantine | Found Alien Artifact 32252 | -3/Quarantine | Identified Matter Drive 32354 | -3/Quarantine | Discovered new exit (range 13) 32363 | -3/Quarantine | Identified exit to Research 32447 | -3/Quarantine | Build established: Wizard-Mutant 32585 | -3/Quarantine | Found Adv. Powered Armor 33231 | -3/Quarantine | Entered Research 33231 | -2/Research | Warlord forces began assault on 0b10 33231 | -2/Research | Evolved 2 slots: Utility x2 33232 | -2/Research | Identified exit to Access 33232 | -2/Research | Identified exit to Testing 33341 | -2/Research | Research machine network offline 33371 | -2/Research | Fabricated Exp. Terrain Scanner (x1) 33575 | -2/Research | Found Prototype Processor 33586 | -2/Research | Identified Exp. Melee Analysis Suite 33655 | -2/Research | Borebot progress halted 33695 | -2/Research | Spotted Striker 33848 | -2/Research | Met up with Warlord 34003 | -2/Research | Discovered exit to Access (range 25) 34130 | -2/Research | Found Prototype Slashing Weapon 34134 | -2/Research | Identified Particle Cleaver 34157 | -2/Research | Build established: Wizard-Scout 34214 | -2/Research | Found Prototype Processor 34222 | -2/Research | Identified Exp. Targeting Computer 34245 | -2/Research | Spotted Striker 34245 | -2/Research | Spotted Striker 34249 | -2/Research | Warlord invited to help at Command 34252 | -2/Research | Borebot progress halted 34279 | -2/Research | Borebot progress halted 34438 | -2/Research | Local fabrication network quarantined 34472 | -2/Research | Spotted B-90 Cyclops 34498 | -2/Research | Spotted B-90 Cyclops 34499 | -2/Research | Spotted Executioner 34500 | -2/Research | Entered Testing 34537 | -2/Testing | Repaired Impulse Thruster Array 34669 | -2/Testing | Crushed by falling debris 34670 | -2/Testing | System corruption reached 10% 34681 | -2/Testing | Found Prototype Slashing Weapon 34682 | -2/Testing | Identified Nanosword 34686 | -2/Testing | Found Nanosword 34688 | -2/Testing | Found Nanosword 35093 | -2/Testing | Spotted Fortress 35118 | -2/Testing | Discovered new exit (range 6) 35144 | -2/Testing | Entered Section 7 35207 | -2/Section 7 | Discovered exit to Access (range 20) 35244 | -2/Section 7 | Entered Access 35244 | -1/Access | Evolved 2 slots: Utility x2 35695 | -1/Access | Fabricated Exp. Signal Interpreter (x1) 35747 | -1/Access | Fabricated Exp. Utility Shielding (x1) 35755 | -1/Access | Found Antimissile System 35849 | -1/Access | Local fabrication network quarantined 35864 | -1/Access | Discovered new exit (range 7) 35866 | -1/Access | Identified exit to Command 35884 | -1/Access | Entered Command 35918 | -1/Command | Repaired Adv. Powered Armor 36160 | -1/Command | Build established: Hacker-Mutant 36172 | -1/Command | Destroyed 7 combat bots 36261 | -1/Command | Disengaged cave seal 36261 | -1/Command | Derelicts emerged from the dark tunnel 36261 | -1/Command | Welcomed Warlord to Command 36334 | -1/Command | Spotted B-99 Colossus 36364 | -1/Command | Destroyed B-99 Colossus 36446 | -1/Command | Spotted M Guard 36446 | -1/Command | Spotted M Guard 36447 | -1/Command | Spotted Combat Programmer 36457 | -1/Command | Spotted Combat Programmer 36462 | -1/Command | Combat Programmer assimilated allied M6-K4B(l) 36471 | -1/Command | Destroyed Combat Programmer 36496 | -1/Command | Lost 4 parts (1n3u) 36522 | -1/Command | Warlord commented on Warlord statues 36527 | -1/Command | All MAIN.C guards destroyed 36637 | -1/Command | Incoming investigation squad redirected 36852 | -1/Command | Met MAIN.C 36862 | -1/Command | 0b10 Conduit disabled 36893 | -1/Command | MAIN.C activated Command garrisons 36919 | -1/Command | Destroyed MAIN.C 36920 | *** | Establishing Free Derelict Territories! Last Messages --------------- 36902_ System corrupted: Nanosword targeting data glitched. Warlord: Not so powerful now, are you, MAIN.C! 36905_ Nanosword follow-up attack on MAIN.C. 36908_ Impulse Thruster Array destroyed. 36908_ Knocked back. 36908_ Dropped Adv. Force Field. 36909_ Dropped Exp. Energy Well. 36911_ Nanosword follow-up attack on MAIN.C. 36913_ MAIN.C Prototype Ballistic Gun severed. 36915_ MAIN.C knocked back. 36915_ Blast Slug penetrates MAIN.C. 36915_ Blast Slug penetrates 0b10 Conduit. 36915_ Blast Slug penetrates Heavy Barrier. 36919_ MAIN.C: "I hope you know you're still going to DIE HERE WITH ME!" 36919_ MAIN.C destroyed. Warlord: Victory! Sure there's still lots to do, but without MAIN.C at the helm 0b10 doesn't stand a chance. We've got this... [Achievement: I Think I Know What's Going On] Map ----- +----------------------------------------------------+ | ?????????????????????????????????????????????????? | | ?????????????????????????????????????????????????? | | ?????????????????????????????????????????????????? | | ?????????????????????????????????????????????????? | | ?????????????????????????????????????????????????? | | ?????????????????????????????????????????????????? | | ?????????????????????????????????????????????????? | | ?????????????????????????????????????????????????? | | ?????????????????????????????????????????????????? | | ?????????????????????????????????????????????????? | | ?????????????????????????????????????????????????? | | ?????????????????????????????????????????????????? | | ?????????????????????????????????????????????????? | | ????????????????????#################????????????? | | ????????????????????"" """" #????????????? | | ???????????????????? "" #????????????? | | ???????????????????" "" ############## | | ??????????????#""??"""""" / | | ???????????????" " " / | | ???????????????"" """" ; | | ??????????????#"" """" ############## | | ??????????????# " "" #????????????? | | ??????????????# " !! W #????????????? | | ??????????????# " ]K!! ""#????????????? | | ??????????????#"""""""" !%=[ """""#????????????? | | ??????????????#"" @% """"""#????????????? | | ??????????????# """ """""#????????????? | | ??????????????# " " " " #????????????? | | ??????????????# " " " " #????????????? | | ???????????? " " " """ " #????????????? | | ???????????? """ " " """" #????????????? | | ???????????? " " " " #????????????? | | ????????????### """""""""" ?? #????????????? | | ??????????????# " ?"" " """"???"?????????????? | | ??????????????# ????" " "????????????????????? | | ??????????????##??????###?###????????????????????? | | ?????????????????????????????????????????????????? | | ?????????????????????????????????????????????????? | | ?????????????????????????????????????????????????? | | ?????????????????????????????????????????????????? | | ?????????????????????????????????????????????????? | | ?????????????????????????????????????????????????? | | ?????????????????????????????????????????????????? | | ?????????????????????????????????????????????????? | | ?????????????????????????????????????????????????? | | ?????????????????????????????????????????????????? | | ?????????????????????????????????????????????????? | | ?????????????????????????????????????????????????? | | ?????????????????????????????????????????????????? | | ?????????????????????????????????????????????????? | +----------------------------------------------------+ Best States ------------- Heat Dissipation 72 Energy Generation 31 Energy Capacity 2170 Matter Stores 300 Matter Capacity 450 Sight Range 16 Robot Scan Range 30 Terrain Scan Range 30 Terrain Scan Density 210 ECM Strength 3 Additional Mass Support 9 Corruption Prevention 12 Armor Coverage 600 Core Shielding 30 Utility Shielding 90 Point Defense Rating 240 Melee Speed Boost 50 Phase Shifting 15 Evasion (%) 92 Melee Accuracy 8 Armor Integrity Analysis 66 Recoil Reduction 3 Offensive Hacking 70 Defensive Hacking 12 Item Schematics ----------------- Lrg. Storage Unit | -10/Materials | Hacked Med. Storage Unit | -10/Materials | Hacked Lrn. Sensor Array | -7/Factory | Hacked Mni. Grenade Launcher | -7/Factory | Scanalyzed Hacking Suite | -7/Factory | Scanalyzed Lgt. Nuclear Core | -7/Factory | Scanalyzed Adv. Signal Interpreter | -7/Factory | Hacked Imp. Cesium-ion Thruster | -7/Factory | Scanalyzed Imp. Weapon Cycler | -6/Factory | Hacked Imp. Integration Mediator | -6/Factory | Hacked Exp. Sensor Array | -6/Factory | Hacked Exp. Signal Interpreter | -6/Factory | Hacked Exp. Terrain Scan Processor | -6/Factory | Hacked Adv. Hacking Suite | -6/Factory | Hacked Combat Drone Bay | -6/Data Miner | Free Lgt. Regenerative Plating | -6/Data Miner | Free Exp. Terrain Scanner | -6/Data Miner | Free Exp. Transmission Jammer | -6/Data Miner | Free Mni. Smartbomb Launcher | -6/Data Miner | Free Exp. Utility Shielding | -5/Factory | Hacked Exp. Propulsion Shielding | -4/Factory | Hacked Powered Armor | -4/Factory | Hacked Field Propulsion Array | -4/Factory | Hacked Adv. System Shield | -4/Factory | Hacked Imp. Powered Armor | -4/Factory | Hacked Adv. Melee Analysis Suite | -4/Factory | Hacked Adv. Force Field | -4/Factory | Hacked Assault Drone Bay | -4/Zhirov | Free Exp. Heat Sink | -4/Zhirov | Free Exp. Optical Array | -4/Zhirov | Free Imp. Arc Thrower | -4/Zhirov | Free Impulse Thruster Array | -3/Research | Hacked Femtoactuators | -3/Research | Hacked Exp. Energy Well | -3/Research | Hacked Mni. Fusion Reactor | -2/Research | Hacked Adv. Phase Shifter | -2/Research | Hacked Robot Schematics ------------------ S-27 Virus | -6/Data Miner | Free G-50 Soldier | -6/Data Miner | Free X-72 Disruptor | -6/Data Miner | Free H-66 Slayer | -6/Data Miner | Free I-36 Angel | -6/Data Miner | Free I-47 Archangel | -6/Data Miner | Free Fabricated ------------ Lrn. Sensor Array | x1 | -7/Factory Adv. Signal Interpreter | x2 | -7/Factory Exp. Sensor Array | x1 | -6/Factory Exp. Signal Interpreter | x1 | -6/Factory Adv. Hacking Suite | x1 | -6/Factory Exp. Sensor Array | x1 | -5/Factory Mni. Smartbomb Launcher | x1 | -5/Factory Adv. Hacking Suite | x1 | -4/Factory Adv. Hacking Suite | x1 | -4/Factory Adv. Hacking Suite | x1 | -4/Factory Adv. Hacking Suite | x1 | -4/Factory Adv. Hacking Suite | x1 | -4/Factory Adv. Hacking Suite | x1 | -4/Factory Femtoactuators | x1 | -3/Research Exp. Utility Shielding | x1 | -3/Research Exp. Terrain Scanner | x1 | -2/Research Exp. Signal Interpreter | x1 | -1/Access Exp. Utility Shielding | x1 | -1/Access Alien Tech Used ----------------- Core Expander Integrated Dissipator Subatomic Replicator Matter Drive Achievements -------------- I Think I Know What's Going On No Explosion For You Challenges ------------ None Game ------ Seed HardcellInsulatedFalx Manual? 0 Play Time 08:20:21 Cumulative 104.1 hours Start 2021.03.04 @ 22:47:29 End 2021.03.07 @ 20:25:07 Sessions 39 Manual Loads 0 Difficulty Rogue Special Mode None Game No. 25 Rogue 24 Adventurer 0 Explorer 1 Win Type 7 Total 6 Types 3/1/0/1/0/0/0/1/0 Lore% 53 Gallery% 62 Achievement% 47 Wizard Run 0 Options --------- ASCII 0 Keyboard 0 Movement Mouse Keybinds 0 Fullscreen 1 Font 18/Terminus Map View 76x50 Tactical HUD 1 Map Filters NONE Filters NONE Steam 0 RUN: 8591a7e4-8eef-4b4b-b797-ba3dc5ffeb50